Cogmind - Beta 13 @@@ ROGUE MODE // 2024.04.08 @ 21:30:19 Player: f_ Result: Destroyed by S-43 Plague with Heavy Machine Gun Performance ------------- Evolutions (7) 3500 Regions Visited (10) 2000 Robots Destroyed (0) 0 Value Destroyed (0) 0 Prototype IDs (7) 140 Alien Tech Used (0) 0 Bonus (5085) 5085 TOTAL SCORE: 10725 Bonus ------- Pacifist 4085 Entered DSFs 1000 Cogmind --------- Core Integrity 0/1300 Matter 79/300 Energy 100/100 System Corruption 0% Temperature Cool (0) Movement Core (50) Location -3/Research Parts ------- > --- POWER (2) -------- (None) > --- PROPULSION (6) --- (None) > --- UTILITY (11) ----- Visual Processing Unit Improved Signal Interpreter > --- WEAPON (2) ------- (None) > --- INVENTORY (5) ---- Ion Engine Nuclear Core Xenon Bombardment Thruster Peak State ------------ > --- POWER ------------ Micro Nuclear Core > --- PROPULSION ------- Improved Surge Thruster Impulse Thruster > --- UTILITY ---------- Advanced Weight Redist. System Visual Processing Unit Improved Signal Interpreter Advanced Reaction Control System > --- WEAPON ----------- (None) > --- INVENTORY -------- Ion Engine Nuclear Core [Rating: 31] Favorites ----------- Power Micro Nuclear Core Power Core Micro Nuclear Core Propulsion Flight Unit Flight Unit Flight Unit Utility Visual Processing Unit Device Sensor Array Processor Visual Processing Unit Weapon Mace Impact Weapon Mace Build | -11 -10 -9 -8 -7 -7 -6 -5 -5 -4 -3 ------- Run | Yrd Mat Mat Mat Fac DSF Fac Fac DSF Fac Res Slots Evolved 14 | . . 2 2 2 . 2 2 . 2 2 Power 1 | . . . . . . . . . . 1 Propulsion 4 | . . . 2 . . . 2 . . . Utility 9 | . . 2 . 2 . 2 . . 2 1 Weapon . | . . . . . . . . . . . Parts Attached 26 | . 1 5 5 4 . 3 . 1 6 1 Power 2 | . . . . . . . . . 2 . Engine . | . . . . . . . . . . . Core 2 | . . . . . . . . . 2 . Reactor . | . . . . . . . . . . . Propulsion 9 | . . 2 1 2 . . . 1 2 1 Treads . | . . . . . . . . . . . Leg . | . . . . . . . . . . . Wheel . | . . . . . . . . . . . Hover . | . . . . . . . . . . . Flight 9 | . . 2 1 2 . . . 1 2 1 Utility 11 | . 1 2 3 2 . 1 . . 2 . Device 6 | . 1 1 1 . . 1 . . 2 . Storage . | . . . . . . . . . . . Processor 5 | . . 1 2 2 . . . . . . Hackware . | . . . . . . . . . . . Protection . | . . . . . . . . . . . Artifact . | . . . . . . . . . . . Weapon 4 | . . 1 1 . . 2 . . . . Energy Gun . | . . . . . . . . . . . Energy Cannon . | . . . . . . . . . . . Ballistic Gun . | . . . . . . . . . . . Ballistic Cannon . | . . . . . . . . . . . Launcher . | . . . . . . . . . . . Special Weapon . | . . . . . . . . . . . Impact Weapon 4 | . . 1 1 . . 2 . . . . Slashing Weapon . | . . . . . . . . . . . Piercing Weapon . | . . . . . . . . . . . Special Melee Weapon . | . . . . . . . . . . . Unidentified Prototypes . | . . . . . . . . . . . Parts Lost 14 | . . 3 1 . 1 3 . . . 6 Power 1 | . . . . . . . . . . 1 Propulsion 6 | . . 2 . . 1 . . . . 3 Utility 6 | . . 1 1 . . 2 . . . 2 Weapon 1 | . . . . . . 1 . . . . Highest Loss Streak 6 | . . 3 1 . 1 3 . . . 6 To Critical Strikes . | . . . . . . . . . . . Average Slot Usage (%) 32 | . 1 35 43 49 61 35 23 17 23 23 Flight 4 | . . 7 2 10 15 . . . 8 5 Device 7 | . 1 20 9 7 7 7 . . 2 5 Processor 17 | . . 7 23 22 30 26 23 17 10 9 Impact Weapon 3 | . . . 9 7 7 1 . . . . Naked Turns 81 | . 81 . . . . . . . . . Heaviest Build 9 | . 1 3 3 3 3 6 . . 9 9 Greatest Support 20 | 3 3 4 4 10 7 3 3 3 20 20 Greatest Overweight (x) 1 | . . . . . . 1 . . . . Average Overweight (x) . | . . . . . . . . . . . Largest Inventory Capacity 5 | 5 5 5 5 5 5 5 5 5 5 5 Average Capacity 5 | 5 5 5 5 5 5 5 5 5 5 5 Most Carried 5 | . 1 . 3 4 5 5 3 4 3 3 Average Carried 2 | . . . 2 3 4 4 3 3 2 2 Final Capacity 5 | 5 5 5 5 5 5 5 5 5 5 5 Final Carried 5 | . 1 . 3 4 5 3 3 4 2 3 Class Distribution -------------------- 47% | Mutant 30% | Scout 16% | Sprinter 5% | Assassin Dominant Class ---------------- Mutant | -10/Materials Mutant | -9/Materials Mutant | -8/Materials Scout | -7/Factory Scout | -7/DSF Scout | -6/Factory Scout | -5/Factory Mutant | -5/DSF Sprinter | -4/Factory Mutant | -3/Research Resources | -11 -10 -9 -8 -7 -7 -6 -5 -5 -4 -3 ----------- Run | Yrd Mat Mat Mat Fac DSF Fac Fac DSF Fac Res Matter Collected 144 | . 15 . . . . 74 . . . 55 Remotely . | . . . . . . . . . . . Salvage Created . | . . . . . . . . . . . Parts . | . . . . . . . . . . . Haulers Intercepted . | . . . . . . . . . . . Recyclers Shooed . | . . . . . . . . . . . Parts Field Recycled . | . . . . . . . . . . . Retrieved Matter . | . . . . . . . . . . . Parts Self-Destructed . | . . . . . . . . . . . Prevented . | . . . . . . . . . . . Kills | -11 -10 -9 -8 -7 -7 -6 -5 -5 -4 -3 ------- Run | Yrd Mat Mat Mat Fac DSF Fac Fac DSF Fac Res Combat Hostiles Destroyed . | . . . . . . . . . . . Classes Destroyed . | . . . . . . . . . . . Best Kill Streak . | . . . . . . . . . . . Combat Bots Only . | . . . . . . . . . . . Max Kills in Single Turn . | . . . . . . . . . . . Gunslinging . | . . . . . . . . . . . Exploded . | . . . . . . . . . . . Melee . | . . . . . . . . . . . Uniques/NPCs Destroyed . | . . . . . . . . . . . Combat | -11 -10 -9 -8 -7 -7 -6 -5 -5 -4 -3 -------- Run | Yrd Mat Mat Mat Fac DSF Fac Fac DSF Fac Res Hostile Shots Fired 372 | . 34 71 19 . 14 13 . 47 10 164 Missed 173 | . 15 28 10 . 8 5 . 13 6 88 Damage Taken 3835 | . 176 396 139 . 261 417 . 672 50 1724 Core 2977 | . 162 310 107 . 157 251 . 644 25 1321 Absorbed by Shields . | . . . . . . . . . . . Core Remaining (%) 64 | 100 35 22 80 . 77 70 . 35 97 . Volleys Fired . | . . . . . . . . . . . Largest . | . . . . . . . . . . . Hottest . | . . . . . . . . . . . Shots Fired . | . . . . . . . . . . . Gun . | . . . . . . . . . . . Cannon . | . . . . . . . . . . . Launcher . | . . . . . . . . . . . Special . | . . . . . . . . . . . Kinetic . | . . . . . . . . . . . Thermal . | . . . . . . . . . . . Explosive . | . . . . . . . . . . . Electromagnetic . | . . . . . . . . . . . Robot Hit Streak . | . . . . . . . . . . . Robot Miss Streak . | . . . . . . . . . . . Penetration Max . | . . . . . . . . . . . Secondary Targets . | . . . . . . . . . . . Shots Hit Robots . | . . . . . . . . . . . Core Hits . | . . . . . . . . . . . Critical Kills . | . . . . . . . . . . . Critical Parts Destroyed . | . . . . . . . . . . . Critical Strikes . | . . . . . . . . . . . Melee Attacks 16 | . . . 14 . . 2 . . . . Impact 16 | . . . 14 . . 2 . . . . Slashing . | . . . . . . . . . . . Piercing . | . . . . . . . . . . . Sneak Attacks . | . . . . . . . . . . . Combat Hostiles . | . . . . . . . . . . . Follow-up Attacks . | . . . . . . . . . . . Damage Inflicted 33 | . 26 . . . . 7 . . . . Guns . | . . . . . . . . . . . Cannons . | . . . . . . . . . . . Explosions . | . . . . . . . . . . . Melee . | . . . . . . . . . . . Ramming 33 | . 26 . . . . 7 . . . . Kinetic . | . . . . . . . . . . . Thermal . | . . . . . . . . . . . Explosive . | . . . . . . . . . . . Electromagnetic . | . . . . . . . . . . . Impact . | . . . . . . . . . . . Slashing . | . . . . . . . . . . . Piercing . | . . . . . . . . . . . Highest Corruption 1 | . . . 1 . . . . . . . Average Corruption 1 | . . . 1 . . . . . . . Corruption Purged . | . . . . . . . . . . . Corruption Blocked . | . . . . . . . . . . . Effects 1 | . . . 1 . . . . . . . Message Errors 1 | . . . 1 . . . . . . . Overload Shots . | . . . . . . . . . . . Overflow Damage . | . . . . . . . . . . . Projectiles . | . . . . . . . . . . . Explosions . | . . . . . . . . . . . Melee . | . . . . . . . . . . . Knockbacks . | . . . . . . . . . . . Impact . | . . . . . . . . . . . Kinetic . | . . . . . . . . . . . Secondary . | . . . . . . . . . . . Self-Inflicted Damage 15 | . 12 . . . . 3 . . . . Shots . | . . . . . . . . . . . Rammed 9 | . 6 . . . . 3 . . . . Targets Rammed 9 | . 6 . . . . 3 . . . . Kicked . | . . . . . . . . . . . Crushed . | . . . . . . . . . . . Highest Temperature 11 | . . . . . . 11 . . . . Average Temperature 11 | . . . . . . 11 . . . . Received Heat Transfer 369 | . 30 42 45 . . . . 168 . 84 Siege Activations . | . . . . . . . . . . . Robots Corrupted . | . . . . . . . . . . . Combat Hostiles . | . . . . . . . . . . . Parts Fried . | . . . . . . . . . . . Impact Corruptions . | . . . . . . . . . . . Robots Melted . | . . . . . . . . . . . Combat Hostiles . | . . . . . . . . . . . Parts Melted . | . . . . . . . . . . . Heat Transferred . | . . . . . . . . . . . Parts Sabotaged . | . . . . . . . . . . . Parts Stolen . | . . . . . . . . . . . Parts Stripped . | . . . . . . . . . . . Power Chain Reactions . | . . . . . . . . . . . Alert | -11 -10 -9 -8 -7 -7 -6 -5 -5 -4 -3 ------- Run | Yrd Mat Mat Mat Fac DSF Fac Fac DSF Fac Res Peak Influence 531 | . 83 83 149 75 56 124 45 31 90 531 Initial 67 | . . 34 34 67 56 23 45 31 16 47 Average 90 | . 24 56 86 72 54 59 45 31 51 297 Maximum Alert Level 2 | . . . . . . . . . . 2 Low Security (%) 91 | 100 100 100 100 100 100 100 100 100 100 32 Level 1 3 | . . . . . . . . . . 30 Level 2 4 | . . . . . . . . . . 37 Level 3 . | . . . . . . . . . . . Level 4 . | . . . . . . . . . . . Level 5 . | . . . . . . . . . . . High Security . | . . . . . . . . . . . Max Security . | . . . . . . . . . . . Squads Dispatched 14 | . 2 . 3 . 1 1 . 1 4 2 Investigation 11 | . 2 . 3 . . 1 . . 3 2 Extermination . | . . . . . . . . . . . Reinforcement 3 | . . . . . 1 . . 1 1 . Assault . | . . . . . . . . . . . Garrison . | . . . . . . . . . . . Intercept . | . . . . . . . . . . . Searches Triggered . | . . . . . . . . . . . Construction Impeded . | . . . . . . . . . . . Haulers Reinforced . | . . . . . . . . . . . Active Scanning Responses . | . . . . . . . . . . . Cargo Convoy Interrupts . | . . . . . . . . . . . Stealth | -11 -10 -9 -8 -7 -7 -6 -5 -5 -4 -3 --------- Run | Yrd Mat Mat Mat Fac DSF Fac Fac DSF Fac Res Distress Signals 9 | . . 2 1 . . 1 . . 2 3 Communications Jammed . | . . . . . . . . . . . Distress Signals . | . . . . . . . . . . . Times Spotted 105 | . 10 18 8 . 3 10 . 5 7 44 Peak Tracking Total 32 | . 6 18 5 . 3 4 . 4 5 32 Tactical Retreats 13 | . 1 1 2 . . 2 . . 1 6 Traps | -11 -10 -9 -8 -7 -7 -6 -5 -5 -4 -3 ------- Run | Yrd Mat Mat Mat Fac DSF Fac Fac DSF Fac Res Traps Triggered 1 | . . . . . . 1 . . . . Indirectly . | . . . . . . . . . . . Trap Hack Attempts . | . . . . . . . . . . . Triggered . | . . . . . . . . . . . Disarmed . | . . . . . . . . . . . Reprogrammed . | . . . . . . . . . . . Reused . | . . . . . . . . . . . Traps Extracted . | . . . . . . . . . . . Installed . | . . . . . . . . . . . Triggered . | . . . . . . . . . . . Machines | -11 -10 -9 -8 -7 -7 -6 -5 -5 -4 -3 ---------- Run | Yrd Mat Mat Mat Fac DSF Fac Fac DSF Fac Res Machines Disabled . | . . . . . . . . . . . Max in Single Turn . | . . . . . . . . . . . Machines Repaired . | . . . . . . . . . . . Machines Dismantled . | . . . . . . . . . . . Machines Sabotaged . | . . . . . . . . . . . Overloaded Fab Kills . | . . . . . . . . . . . Hacking | -11 -10 -9 -8 -7 -7 -6 -5 -5 -4 -3 --------- Run | Yrd Mat Mat Mat Fac DSF Fac Fac DSF Fac Res Machines Accessed 26 | . 4 4 5 2 . 2 1 . 5 3 Terminals 23 | . 4 4 5 1 . 2 1 . 4 2 Fabricators 1 | . . . . 1 . . . . . . Repair Stations . | . . . . . . . . . . . Recycling Units 1 | . . . . . . . . . 1 . Scanalyzers 1 | . . . . . . . . . . 1 Garrison Access . | . . . . . . . . . . . Total Hacks 84 | . 17 14 16 5 . 5 2 . 15 10 Successful 29 | . 7 5 4 2 . 3 1 . 5 2 Failed 55 | . 10 9 12 3 . 2 1 . 10 8 Catastrophic 13 | . 3 2 3 . . 2 . . 2 1 Database Lockouts . | . . . . . . . . . . . Manual 66 | . 17 14 16 3 . 3 . . 10 3 Terminals 76 | . 17 14 16 2 . 5 2 . 11 9 Fabricators 3 | . . . . 3 . . . . . . Repair Stations . | . . . . . . . . . . . Recycling Units 4 | . . . . . . . . . 4 . Scanalyzers 1 | . . . . . . . . . . 1 Garrison Access . | . . . . . . . . . . . Terminal Hacks 15 | . 4 4 1 1 . 2 1 . 1 1 Prototype ID Bank 4 | . 3 1 . . . . . . . . Open DSF 5 | . . . . 1 . 1 1 . 1 1 Level Access Points 2 | . 1 1 . . . . . . . . Terminal Index 3 | . . 1 1 . . 1 . . . . Patrol Status 1 | . . 1 . . . . . . . . Fabricator Hacks . | . . . . . . . . . . . Repair Station Hacks . | . . . . . . . . . . . Recycling Unit Hacks 3 | . . . . . . . . . 3 . Process 1 | . . . . . . . . . 1 . Report Inventory 1 | . . . . . . . . . 1 . Retrieve Matter 1 | . . . . . . . . . 1 . Scanalyzer 1 | . . . . . . . . . . 1 Insert Component 1 | . . . . . . . . . . 1 Garrison Access Hacks . | . . . . . . . . . . . Unauthorized Hacks 10 | . 3 1 3 1 . 1 . . 1 . Terminals 9 | . 3 1 3 . . 1 . . 1 . Assimilate 1 | . 1 . . . . . . . . . Botnet 8 | . 2 1 3 . . 1 . . 1 . Fabricators 1 | . . . . 1 . . . . . . Fabnet 1 | . . . . 1 . . . . . . Repair Stations . | . . . . . . . . . . . Recycling Units . | . . . . . . . . . . . Scanalyzers . | . . . . . . . . . . . Garrison Access . | . . . . . . . . . . . Data Cores Recovered . | . . . . . . . . . . . Used . | . . . . . . . . . . . Hacking Detections 24 | . 4 4 5 2 . 2 1 . 3 3 Full Trace Events 15 | . 4 . 5 . . 1 . . 3 2 Feedback Events 1 | . . . 1 . . . . . . . Corruption 1 | . . . 1 . . . . . . . Feedback Blocked . | . . . . . . . . . . . Robot Schematics Acquired . | . . . . . . . . . . . Robots Built . | . . . . . . . . . . . Authchips . | . . . . . . . . . . . Time . | . . . . . . . . . . . Total Robot Build Rating . | . . . . . . . . . . . Part Schematics Acquired . | . . . . . . . . . . . Parts Built . | . . . . . . . . . . . Authchips . | . . . . . . . . . . . Time . | . . . . . . . . . . . Total Part Build Rating . | . . . . . . . . . . . Parts Repaired . | . . . . . . . . . . . Time . | . . . . . . . . . . . Parts Recycled . | . . . . . . . . . . . Recycled Matter . | . . . . . . . . . . . Retrieved Matter . | . . . . . . . . . . . Retrieved Components . | . . . . . . . . . . . Parts Scanalyzed . | . . . . . . . . . . . Part Schematics Acquired . | . . . . . . . . . . . Parts Damaged . | . . . . . . . . . . . Bothacking | -11 -10 -9 -8 -7 -7 -6 -5 -5 -4 -3 ------------ Run | Yrd Mat Mat Mat Fac DSF Fac Fac DSF Fac Res Used RIF Installer . | . . . . . . . . . . . Robots Hacked 1 | . . . . . . 1 . . . . Non-combat . | . . . . . . . . . . . Combat 1 | . . . . . . 1 . . . . Robot Hacks Applied . | . . . . . . . . . . . Relay Couplers Released . | . . . . . . . . . . . Fabnet Peak Effective % 3 | . . . . . . 3 1 1 . . Autooverrided 1 | . . . . . . 1 . . . . Robots Rewired . | . . . . . . . . . . . Allies Hacked . | . . . . . . . . . . . Hacks Repelled . | . . . . . . . . . . . Allies | -11 -10 -9 -8 -7 -7 -6 -5 -5 -4 -3 -------- Run | Yrd Mat Mat Mat Fac DSF Fac Fac DSF Fac Res Total Allies 1 | . . . . . . 1 . . . . Largest Group . | . . . . . . . . . . . Highest-Rated Group . | . . . . . . . . . . . Highest-Rated Ally . | . . . . . . . . . . . Total Orders . | . . . . . . . . . . . Ally Attacks . | . . . . . . . . . . . Total Damage . | . . . . . . . . . . . Kills . | . . . . . . . . . . . Allies Corrupted . | . . . . . . . . . . . Allies Melted . | . . . . . . . . . . . Intel | -11 -10 -9 -8 -7 -7 -6 -5 -5 -4 -3 ------- Run | Yrd Mat Mat Mat Fac DSF Fac Fac DSF Fac Res Robot Analysis Total . | . . . . . . . . . . . Derelict Logs Recovered . | . . . . . . . . . . . Drone Launches . | . . . . . . . . . . . Drone Recoveries . | . . . . . . . . . . . Exploration | -11 -10 -9 -8 -7 -7 -6 -5 -5 -4 -3 ------------- Run | Yrd Mat Mat Mat Fac DSF Fac Fac DSF Fac Res Turns Passed 928 | 9 95 93 204 54 38 204 2 20 91 118 Spaces Moved 1894 | 18 172 200 334 122 104 334 3 35 262 310 Core 925 | 18 172 56 215 . 13 334 3 35 . 79 Treads . | . . . . . . . . . . . Legs . | . . . . . . . . . . . Wheels . | . . . . . . . . . . . Hover . | . . . . . . . . . . . Flight 969 | . . 144 119 122 91 . . . 262 231 Fastest Speed 30 | 50 50 40 40 30 32 50 50 50 30 30 Average Speed 43 | 50 50 42 46 38 35 57 50 50 31 36 Slowest Speed 100 | 50 50 50 50 40 50 100 50 50 32 50 Overloaded Moves . | . . . . . . . . . . . Propulsion Burnouts . | . . . . . . . . . . . Robots Hopped 25 | . . 11 1 . . . . . 4 9 Cave-ins Triggered . | . . . . . . . . . . . Exploration Rate (%) 30 | 3 37 38 31 6 91 15 . 47 11 21 Regions Visited 10 Branch Regions . Pre-discovered Areas . | . . . . . . . . . . . Known Exits Taken 6 | . 1 1 . 1 . 1 1 . 1 . Unknown Exits Taken 2 | 1 . . 1 . . . . . . . Scrap Searched . | . . . . . . . . . . . Spaces Dug 13 | . . . 12 . . 1 . . . . Terrain Destroyed 13 | . . . 12 . . 1 . . . . Melee 13 | . . . 12 . . 1 . . . . Projectile . | . . . . . . . . . . . AOE . | . . . . . . . . . . . Terrain Rammed . | . . . . . . . . . . . Walls Destroyed . | . . . . . . . . . . . Machines Disabled . | . . . . . . . . . . . Actions | -11 -10 -9 -8 -7 -7 -6 -5 -5 -4 -3 --------- Run | Yrd Mat Mat Mat Fac DSF Fac Fac DSF Fac Res Total 1922 | 17 179 193 355 126 104 343 2 36 264 303 Wait . | . . . . . . . . . . . Move 1841 | 17 171 181 331 121 103 333 2 34 253 295 Hop 18 | . . 7 1 . . . . . 4 6 Pick Up 8 | . 1 . 2 1 1 1 . 1 . 1 Fast Attach 20 | . 1 4 5 4 . 1 . 1 3 1 Attach 6 | . . 1 . . . 2 . . 3 . Detach 2 | . . . 1 . . . . . 1 . Swap . | . . . . . . . . . . . Drop 2 | . . . 1 . . 1 . . . . Fire . | . . . . . . . . . . . Melee 16 | . . . 14 . . 2 . . . . Ram 9 | . 6 . . . . 3 . . . . Kick . | . . . . . . . . . . . Crush . | . . . . . . . . . . . Escape Stasis . | . . . . . . . . . . . Rewire . | . . . . . . . . . . . Trap . | . . . . . . . . . . . Miscellaneous . | . . . . . . . . . . . Route ------- -11/Scrapyard -10/Materials (discovered 4 exits: *Mat x3 / [*Min]) -9/Materials (discovered 3 exits: *Mat x3) -8/Materials -7/Factory -7/DSF -6/Factory -5/Factory -5/DSF -4/Factory -3/Research History --------- Turn | Location | Event 3 | -11/Scrapyard | Discovered new exit (range 15) 10 | -11/Scrapyard | Entered Materials 37 | -10/Materials | Identified exit to Materials 51 | -10/Materials | Discovered new exit (range 14) 101 | -10/Materials | Core integrity fell below 50% 105 | -10/Materials | Entered another Materials area 105 | -9/Materials | Evolved 2 slots: Utility x2 135 | -9/Materials | Identified exit to Materials 188 | -9/Materials | Core integrity fell below 50% 198 | -9/Materials | Entered another Materials area 198 | -8/Materials | Evolved 2 slots: Propulsion x2 216 | -8/Materials | Lost 3 parts (2n1u) 300 | -8/Materials | Build established: Mutant 393 | -8/Materials | Discovered new exit (range 7) 402 | -8/Materials | Entered Factory 402 | -7/Factory | Evolved 2 slots: Utility x2 456 | -7/Factory | Identified exit to DSF 456 | -7/Factory | Entered DSF 476 | -7/DSF | Additional patrols routed to DSF 485 | -7/DSF | Discovered new exit (range 19) 493 | -7/DSF | Identified exit to Factory 494 | -7/DSF | Entered Factory 494 | -6/Factory | Evolved 2 slots: Utility x2 693 | -6/Factory | Discovered new exit (range 10) 697 | -6/Factory | Identified exit to Factory 698 | -6/Factory | Local machine network offline 698 | -6/Factory | Entered another Factory area 698 | -5/Factory | Evolved 2 slots: Propulsion x2 700 | -5/Factory | Identified exit to DSF 700 | -5/Factory | Entered DSF 705 | -5/DSF | Discovered new exit (range 19) 718 | -5/DSF | Lost 3 parts (2u1w) 720 | -5/DSF | Core integrity fell below 50% 720 | -5/DSF | Identified exit to Factory 720 | -5/DSF | Entered Factory 720 | -4/Factory | Evolved 2 slots: Utility x2 760 | -4/Factory | Spotted B-86 Titan 805 | -4/Factory | Discovered new exit (range 18) 810 | -4/Factory | Identified exit to Research 811 | -4/Factory | Entered Research 811 | -3/Research | Evolved 2 slots: Power x1, Utility x1 854 | -3/Research | Spotted B-86 Titan 900 | -3/Research | Core integrity fell below 50% 919 | -3/Research | Core integrity fell below 20% 929 | -3/Research | Destroyed by S-43 Plague with Heavy Machine Gun Last Messages --------------- 00877_ Adv. Reaction Control System destroyed. 00877_ K-01 Serf cleans the Subatomic Condenser. 00882_ Penetrated by Slug. 00882_ Slug penetrates Wall. 00884_ K-01 Serf cleans the Subatomic Condenser. 00889_ Connecting with DSF Access... 00889_ ALERT: Suspicious activity at Terminal R023. Dispatching Investigation squad. 00893_ K-01 Serf destroyed. 00893_ Adv. Weight Redist. System destroyed. 00908_ Acquired Field Propulsion Array. 00911_ Connecting with Terminal... 00911_ ALERT: Suspicious activity at Terminal R014. Dispatching Investigation squad. 00912_ S-43 Plague destroyed. 00913_ Acquired Xenon Bombardment Thruster. 00914_ Acquired 30 matter. 00920_ Field Propulsion Array destroyed. 00921_ K-01 Serf collects debris. 00923_ S-43 Plague destroyed. Map ----- +----------------------------------------------------+ | ?????????????????????????????????????????????????? | | ?????????????????????????????????????????????????? | | ?????????????????????????????????????????????????? | | ?????????????????????????????????????????????????? | | ?????????????????????????????????????????????????? | | ?????????????????????????????????????????????????? | | ?????????????????????????????????????????????????? | | ?????????????????????????????????????????????????? | | ?????????????????????????????????????????????????? | | ?????????????????????????????????????????????????? | | ??????????????????????? ?????????????????????????? | | ??????????????????????? ?????????????????????????? | | ????????????????#?????? ?????????????????????????? | | ????????????????# ????! ?????????????????????????? | | ????????????????# ???? ""???????????????????????? | | ????????????????# ???? ""???????????????????????? | | ????????????????# ??? ""???????????????????????? | | ????????????????# ??? ???????????????????????? | | ????????????????# ?? ???????????????????????? | | ????????????????? ###+############????????????? | | ?????????????????? u k u ?????????????? | | ???????????????????? ???????????????? | | ????????????????????? ?????????????????? | | ?????????????????????? ???????????????????? | | ???????????????????????# #????????????????????? | | ???????????????????????#k@ #????????????????????? | | ???????????????######### #????????????????????? | | ?????????????# + #????????????????????? | | ?????????????# ! # #????????????????????? | | ?????????????# ??# #????????????????????? | | ?????????????# ????#k #????????????????????? | | ?????????????# ??????# #?????????????? ?????? | | ?????????????# ????????# #??????????? ?????? | | ???????????????????????# ########## ????? | | ???????????????????????# ????? | | ???????????????????????# ! ???? | | ???????????????????????# ???? | | ???????????????????????# #??????? | | ???????????????????????# ###########+##???????? | | ???????????????????????# #????????????????????? | | ???????????????????????# #????????????????????? | | ???????????????????????# ########?????????????? | | ???????????????????????# ss# #?????????????? | | ?????????????########### %[ # #????????? ?? | | ?????????????# # # #????????? | | ?????????????# # # #????????? | | ?????????????# "" # # #????????? | | ?????????????# """ # # ! #????????# # | | ?????????????# "F # # #????????# # | | ?????????????# """ # # ""#????????# # | +----------------------------------------------------+ Best States ------------- Heat Dissipation 46 Energy Generation 15 Energy Capacity 150 Matter Stores 115 Matter Capacity 300 Sight Range 20 Robot Scan Range 14 Terrain Scan Range 16 Terrain Scan Density 110 Additional Mass Support 9 Evasion (%) 76 Melee Accuracy 5 Item Schematics ----------------- None Robot Schematics ------------------ None Fabricated ------------ Nothing Alien Tech Used ----------------- None Achievements -------------- Omniscient Cartographer Challenges ------------ None Game ------ Seed ThermicSpikedPurifier Manual? 0 Play Time 00:31:26 Cumulative 172.3 hours Start 2024.04.08 @ 20:54:28 End 2024.04.08 @ 21:30:19 Sessions 1 Manual Loads 0 Difficulty Rogue Special Mode None Game No. 153 Rogue 148 Adventurer 0 Explorer 5 Win Type - Total 5 Types 2/0/1/2/0/0/0/0/0 Lore% 52 Gallery% 62 Achievement% 48 Wizard Run 0 Options --------- Layout 0 ASCII 0 Keyboard 0 Movement Numpad Keybinds 0 Fullscreen 2 Font 36/Terminus Map View 83x50 Zoom Use 0% Tactical HUD 1 Map Filters NONE Filters NONE Steam 1 RUN: 0a0518f5-27c7-439c-9858-ef020e4ce9c7